{"text_format":"3","workbook":"xlsx","n_sheets":2,"sheets":["Ihre Ausgaben","Bericht"],"not_rendered":{"charts":2,"images":1,"defined_names":6},"read":"whole","date_system":"1900"}

{"sheet":"Ihre Ausgaben","index":0,"n_rows":26,"n_cols":8,"rows_kept":26,"merged":[[1,1,1,7]]}
[]
[null,"Erstellen Sie Ihr Nahrungsmittelbudget. Sehen Sie sich die Tipps in den Zellen der Tabellenüberschrift unten aus.\nSie können einen Bericht im Berichtsarbeitsblatt erstellen."]
[null,"Datum","Kategorie","Artikel","Menge \ninsg.","Preis \npro Stück","Preis \n(Summe)","Einkaufsquelle"]
[null,{"$f":"TODAY()","v":"2019-03-14"},"Süßigkeiten","Bonbons",{"v":0.25,"d":"0.3"},{"v":6,"d":"6.00 €"},{"$f":"Monatliche_Ausgaben[[#This Row],[Preis \npro Stück]]*Monatliche_Ausgaben[[#This Row],[Menge \ninsg.]]","v":{"v":1.5,"d":"1.50 €"}},"Lebensmittelgeschäft"]
[null,{"$f":"TODAY()","v":"2019-03-14"},"Getränke","Cola",{"v":1,"d":"1.0"},{"v":1,"d":"1.00 €"},{"$f":"Monatliche_Ausgaben[[#This Row],[Preis \npro Stück]]*Monatliche_Ausgaben[[#This Row],[Menge \ninsg.]]","v":{"v":1,"d":"1.00 €"}},"Fast-Food-Restaurant"]
[null,{"$f":"TODAY()-1","v":"2019-03-13"},"Fertiggerichte","Mittagessen",{"v":1,"d":"1.0"},{"v":28,"d":"28.00 €"},{"$f":"Monatliche_Ausgaben[[#This Row],[Preis \npro Stück]]*Monatliche_Ausgaben[[#This Row],[Menge \ninsg.]]","v":{"v":28,"d":"28.00 €"}},"Fast-Food-Restaurant"]
[null,{"$f":"TODAY()-1","v":"2019-03-13"},"Fleisch","Rindfleisch",1.2,{"v":15,"d":"15.00 €"},{"$f":"Monatliche_Ausgaben[[#This Row],[Preis \npro Stück]]*Monatliche_Ausgaben[[#This Row],[Menge \ninsg.]]","v":{"v":18,"d":"18.00 €"}},"Lebensmittelgeschäft"]
[null,{"$f":"TODAY()-1","v":"2019-03-13"},"Alkohol","Whisky",{"v":1,"d":"1.0"},{"v":25,"d":"25.00 €"},{"$f":"Monatliche_Ausgaben[[#This Row],[Preis \npro Stück]]*Monatliche_Ausgaben[[#This Row],[Menge \ninsg.]]","v":{"v":25,"d":"25.00 €"}},"Lebensmittelgeschäft"]
[null,{"$f":"TODAY()-2","v":"2019-03-12"},"Getränke","Sprudel",{"v":6,"d":"6.0"},{"v":1,"d":"1.00 €"},{"$f":"Monatliche_Ausgaben[[#This Row],[Preis \npro Stück]]*Monatliche_Ausgaben[[#This Row],[Menge \ninsg.]]","v":{"v":6,"d":"6.00 €"}},"Lieferung nach Hause"]
[null,{"$f":"TODAY()-2","v":"2019-03-12"},"Fertiggerichte","Mittagessen",{"v":1,"d":"1.0"},{"v":10,"d":"10.00 €"},{"$f":"Monatliche_Ausgaben[[#This Row],[Preis \npro Stück]]*Monatliche_Ausgaben[[#This Row],[Menge \ninsg.]]","v":{"v":10,"d":"10.00 €"}},"Lieferung nach Hause"]
[null,{"$f":"TODAY()-2","v":"2019-03-12"},"Obst und Gemüse","Äpfel",{"v":2,"d":"2.0"},{"v":5,"d":"5.00 €"},{"$f":"Monatliche_Ausgaben[[#This Row],[Preis \npro Stück]]*Monatliche_Ausgaben[[#This Row],[Menge \ninsg.]]","v":{"v":10,"d":"10.00 €"}},"Lieferung nach Hause"]
[null,{"$f":"TODAY()-2","v":"2019-03-12"},"Getränke","Wasser",{"v":1,"d":"1.0"},{"v":1,"d":"1.00 €"},{"$f":"Monatliche_Ausgaben[[#This Row],[Preis \npro Stück]]*Monatliche_Ausgaben[[#This Row],[Menge \ninsg.]]","v":{"v":1,"d":"1.00 €"}},"Lebensmittelgeschäft"]
[null,{"$f":"TODAY()-3","v":"2019-03-11"},"Getränke","Cola",{"v":1,"d":"1.0"},{"v":1,"d":"1.00 €"},{"$f":"Monatliche_Ausgaben[[#This Row],[Preis \npro Stück]]*Monatliche_Ausgaben[[#This Row],[Menge \ninsg.]]","v":{"v":1,"d":"1.00 €"}},"Fast-Food-Restaurant"]
[null,{"$f":"TODAY()-3","v":"2019-03-11"},"Süßigkeiten","Schokolade",{"v":2,"d":"2.0"},{"v":3,"d":"3.00 €"},{"$f":"Monatliche_Ausgaben[[#This Row],[Preis \npro Stück]]*Monatliche_Ausgaben[[#This Row],[Menge \ninsg.]]","v":{"v":6,"d":"6.00 €"}},"Lebensmittelgeschäft"]
[null,{"$f":"TODAY()-3","v":"2019-03-11"},"Süßigkeiten","Bonbons",{"v":5,"d":"5.0"},{"v":1,"d":"1.00 €"},{"$f":"Monatliche_Ausgaben[[#This Row],[Preis \npro Stück]]*Monatliche_Ausgaben[[#This Row],[Menge \ninsg.]]","v":{"v":5,"d":"5.00 €"}},"Lebensmittelgeschäft"]
[null,{"$f":"TODAY()-3","v":"2019-03-11"},"Getränke","Wasser",{"v":2,"d":"2.0"},{"v":0.75,"d":"0.75 €"},{"$f":"Monatliche_Ausgaben[[#This Row],[Preis \npro Stück]]*Monatliche_Ausgaben[[#This Row],[Menge \ninsg.]]","v":{"v":1.5,"d":"1.50 €"}},"Café"]
[null,{"$f":"TODAY()-4","v":"2019-03-10"},"Fertiggerichte","Reis",{"v":1,"d":"1.0"},{"v":3.25,"d":"3.25 €"},{"$f":"Monatliche_Ausgaben[[#This Row],[Preis \npro Stück]]*Monatliche_Ausgaben[[#This Row],[Menge \ninsg.]]","v":{"v":3.25,"d":"3.25 €"}},"Restaurant"]
[null,{"$f":"TODAY()-4","v":"2019-03-10"},"Fleisch","Rindfleisch",0.6,{"v":12,"d":"12.00 €"},{"$f":"Monatliche_Ausgaben[[#This Row],[Preis \npro Stück]]*Monatliche_Ausgaben[[#This Row],[Menge \ninsg.]]","v":{"v":7.199999999999999,"d":"7.20 €"}},"Lebensmittelgeschäft"]
[null,{"$f":"TODAY()-4","v":"2019-03-10"},"Alkohol","Bier",{"v":1,"d":"1.0"},{"v":2,"d":"2.00 €"},{"$f":"Monatliche_Ausgaben[[#This Row],[Preis \npro Stück]]*Monatliche_Ausgaben[[#This Row],[Menge \ninsg.]]","v":{"v":2,"d":"2.00 €"}},"Restaurant"]
[null,{"$f":"TODAY()-4","v":"2019-03-10"},"Getränke","Sprudel",{"v":1,"d":"1.0"},{"v":1,"d":"1.00 €"},{"$f":"Monatliche_Ausgaben[[#This Row],[Preis \npro Stück]]*Monatliche_Ausgaben[[#This Row],[Menge \ninsg.]]","v":{"v":1,"d":"1.00 €"}},"Lebensmittelgeschäft"]
[null,{"$f":"TODAY()-5","v":"2019-03-09"},"Fertiggerichte","Mittagessen",{"v":1,"d":"1.0"},{"v":10,"d":"10.00 €"},{"$f":"Monatliche_Ausgaben[[#This Row],[Preis \npro Stück]]*Monatliche_Ausgaben[[#This Row],[Menge \ninsg.]]","v":{"v":10,"d":"10.00 €"}},"Fast-Food-Restaurant"]
[null,{"$f":"TODAY()-5","v":"2019-03-09"},"Obst und Gemüse","Bananen",{"v":2,"d":"2.0"},{"v":3,"d":"3.00 €"},{"$f":"Monatliche_Ausgaben[[#This Row],[Preis \npro Stück]]*Monatliche_Ausgaben[[#This Row],[Menge \ninsg.]]","v":{"v":6,"d":"6.00 €"}},"Lieferung nach Hause"]
[null,{"$f":"TODAY()-5","v":"2019-03-09"},"Getränke","Cola",{"v":1,"d":"1.0"},{"v":0.75,"d":"0.75 €"},{"$f":"Monatliche_Ausgaben[[#This Row],[Preis \npro Stück]]*Monatliche_Ausgaben[[#This Row],[Menge \ninsg.]]","v":{"v":0.75,"d":"0.75 €"}},"Lebensmittelgeschäft"]
[null,{"$f":"TODAY()-5","v":"2019-03-09"},"Alkohol","Bier",{"v":1,"d":"1.0"},{"v":1,"d":"1.00 €"},{"$f":"Monatliche_Ausgaben[[#This Row],[Preis \npro Stück]]*Monatliche_Ausgaben[[#This Row],[Menge \ninsg.]]","v":{"v":1,"d":"1.00 €"}},"Café"]
[null,{"$f":"TODAY()-5","v":"2019-03-09"},"Brot","Brötchen",{"v":5,"d":"5.0"},{"v":0.2,"d":"0.20 €"},{"$f":"Monatliche_Ausgaben[[#This Row],[Preis \npro Stück]]*Monatliche_Ausgaben[[#This Row],[Menge \ninsg.]]","v":{"v":1,"d":"1.00 €"}},"Lebensmittelgeschäft"]
[null,"Ergebnis",{"$nulls":4},{"$f":"SUBTOTAL(109,Monatliche_Ausgaben[Preis \n(Summe)])","v":{"v":146.2,"d":"146.20 €"}}]

{"sheet":"Bericht","index":1,"n_rows":29,"n_cols":6,"rows_kept":29,"merged":[[0,1,0,7],[5,1,5,2],[18,1,18,2]]}
[null,"Überprüfen Sie Ihre Ausgaben im gewählten Zeitraum. "]
[]
[null,"Starttag",{"$f":"TODAY()-1","v":"2019-03-13"},null,"Letzter Tag",{"$f":"TODAY()","v":"2019-03-14"}]
[]
[]
[null,"Ausgaben nach Lebensmittelkategorie"]
[]
[null,"Lebensmittelkategorie","Ausgaben"]
[null,"Alkohol",{"$f":"SUMIFS(Monatliche_Ausgaben[Preis \n(Summe)],Monatliche_Ausgaben[Datum],\">=\"&Anfangs_Datum,Monatliche_Ausgaben[Datum],\"<=\"&End_Datum,Monatliche_Ausgaben[Kategorie],Ausgaben_Nach_Lebensmittel_Kategorie[[#This Row],[Lebensmittelkategorie]])","v":{"v":25,"d":"25.00 €"}}]
[null,"Brot",{"$f":"SUMIFS(Monatliche_Ausgaben[Preis \n(Summe)],Monatliche_Ausgaben[Datum],\">=\"&Anfangs_Datum,Monatliche_Ausgaben[Datum],\"<=\"&End_Datum,Monatliche_Ausgaben[Kategorie],Ausgaben_Nach_Lebensmittel_Kategorie[[#This Row],[Lebensmittelkategorie]])","v":{"v":0,"d":"0.00 €"}}]
[null,"Getränke",{"$f":"SUMIFS(Monatliche_Ausgaben[Preis \n(Summe)],Monatliche_Ausgaben[Datum],\">=\"&Anfangs_Datum,Monatliche_Ausgaben[Datum],\"<=\"&End_Datum,Monatliche_Ausgaben[Kategorie],Ausgaben_Nach_Lebensmittel_Kategorie[[#This Row],[Lebensmittelkategorie]])","v":{"v":1,"d":"1.00 €"}}]
[null,"Obst und Gemüse",{"$f":"SUMIFS(Monatliche_Ausgaben[Preis \n(Summe)],Monatliche_Ausgaben[Datum],\">=\"&Anfangs_Datum,Monatliche_Ausgaben[Datum],\"<=\"&End_Datum,Monatliche_Ausgaben[Kategorie],Ausgaben_Nach_Lebensmittel_Kategorie[[#This Row],[Lebensmittelkategorie]])","v":{"v":0,"d":"0.00 €"}}]
[null,"Fleisch",{"$f":"SUMIFS(Monatliche_Ausgaben[Preis \n(Summe)],Monatliche_Ausgaben[Datum],\">=\"&Anfangs_Datum,Monatliche_Ausgaben[Datum],\"<=\"&End_Datum,Monatliche_Ausgaben[Kategorie],Ausgaben_Nach_Lebensmittel_Kategorie[[#This Row],[Lebensmittelkategorie]])","v":{"v":18,"d":"18.00 €"}}]
[null,"Fertiggerichte",{"$f":"SUMIFS(Monatliche_Ausgaben[Preis \n(Summe)],Monatliche_Ausgaben[Datum],\">=\"&Anfangs_Datum,Monatliche_Ausgaben[Datum],\"<=\"&End_Datum,Monatliche_Ausgaben[Kategorie],Ausgaben_Nach_Lebensmittel_Kategorie[[#This Row],[Lebensmittelkategorie]])","v":{"v":28,"d":"28.00 €"}}]
[null,"Süßigkeiten",{"$f":"SUMIFS(Monatliche_Ausgaben[Preis \n(Summe)],Monatliche_Ausgaben[Datum],\">=\"&Anfangs_Datum,Monatliche_Ausgaben[Datum],\"<=\"&End_Datum,Monatliche_Ausgaben[Kategorie],Ausgaben_Nach_Lebensmittel_Kategorie[[#This Row],[Lebensmittelkategorie]])","v":{"v":1.5,"d":"1.50 €"}}]
[null,"Sonstiges",{"$f":"SUMIFS(Monatliche_Ausgaben[Preis \n(Summe)],Monatliche_Ausgaben[Datum],\">=\"&Anfangs_Datum,Monatliche_Ausgaben[Datum],\"<=\"&End_Datum,Monatliche_Ausgaben[Kategorie],Ausgaben_Nach_Lebensmittel_Kategorie[[#This Row],[Lebensmittelkategorie]])","v":{"v":0,"d":"0.00 €"}}]
[null,"Ergebnis",{"$f":"SUBTOTAL(109,Ausgaben_Nach_Lebensmittel_Kategorie[Ausgaben])","v":{"v":73.5,"d":"73.50 €"}}]
[]
[null,"Ausgaben nach Ort"]
[]
[null,"Ortsliste","Ausgaben"]
[null,"Markt",{"$f":"SUMIFS(Monatliche_Ausgaben[Preis \n(Summe)],Monatliche_Ausgaben[Datum],\">=\"&Anfangs_Datum,Monatliche_Ausgaben[Datum],\"<=\"&End_Datum,Monatliche_Ausgaben[Einkaufsquelle],Ausgaben_Nach_Orten[[#This Row],[Ortsliste]])","v":{"v":0,"d":"0.00 €"}}]
[null,"Café",{"$f":"SUMIFS(Monatliche_Ausgaben[Preis \n(Summe)],Monatliche_Ausgaben[Datum],\">=\"&Anfangs_Datum,Monatliche_Ausgaben[Datum],\"<=\"&End_Datum,Monatliche_Ausgaben[Einkaufsquelle],Ausgaben_Nach_Orten[[#This Row],[Ortsliste]])","v":{"v":0,"d":"0.00 €"}}]
[null,"Fast-Food-Restaurant",{"$f":"SUMIFS(Monatliche_Ausgaben[Preis \n(Summe)],Monatliche_Ausgaben[Datum],\">=\"&Anfangs_Datum,Monatliche_Ausgaben[Datum],\"<=\"&End_Datum,Monatliche_Ausgaben[Einkaufsquelle],Ausgaben_Nach_Orten[[#This Row],[Ortsliste]])","v":{"v":29,"d":"29.00 €"}}]
[null,"Lebensmittelgeschäft",{"$f":"SUMIFS(Monatliche_Ausgaben[Preis \n(Summe)],Monatliche_Ausgaben[Datum],\">=\"&Anfangs_Datum,Monatliche_Ausgaben[Datum],\"<=\"&End_Datum,Monatliche_Ausgaben[Einkaufsquelle],Ausgaben_Nach_Orten[[#This Row],[Ortsliste]])","v":{"v":44.5,"d":"44.50 €"}}]
[null,"Lieferung nach Hause",{"$f":"SUMIFS(Monatliche_Ausgaben[Preis \n(Summe)],Monatliche_Ausgaben[Datum],\">=\"&Anfangs_Datum,Monatliche_Ausgaben[Datum],\"<=\"&End_Datum,Monatliche_Ausgaben[Einkaufsquelle],Ausgaben_Nach_Orten[[#This Row],[Ortsliste]])","v":{"v":0,"d":"0.00 €"}}]
[null,"Restaurant",{"$f":"SUMIFS(Monatliche_Ausgaben[Preis \n(Summe)],Monatliche_Ausgaben[Datum],\">=\"&Anfangs_Datum,Monatliche_Ausgaben[Datum],\"<=\"&End_Datum,Monatliche_Ausgaben[Einkaufsquelle],Ausgaben_Nach_Orten[[#This Row],[Ortsliste]])","v":{"v":0,"d":"0.00 €"}}]
[null,"Sonstiges",{"$f":"SUMIFS(Monatliche_Ausgaben[Preis \n(Summe)],Monatliche_Ausgaben[Datum],\">=\"&Anfangs_Datum,Monatliche_Ausgaben[Datum],\"<=\"&End_Datum,Monatliche_Ausgaben[Einkaufsquelle],Ausgaben_Nach_Orten[[#This Row],[Ortsliste]])","v":{"v":0,"d":"0.00 €"}}]
[null,"Ergebnis",{"$f":"SUBTOTAL(109,Ausgaben_Nach_Orten[Ausgaben])","v":{"v":73.5,"d":"73.50 €"}}]